Cogmind - Beta 13 @@@ ROGUE MODE // 2024.04.26 @ 11:14:17 Player: arkn Result: Smashed by cave-in Performance ------------- Evolutions (0) 0 Regions Visited (4) 800 Robots Destroyed (23) 115 Value Destroyed (470) 470 Prototype IDs (0) 0 Alien Tech Used (0) 0 Bonus (127) 127 TOTAL SCORE: 1512 Bonus ------- Follower Combat Kills 127 Cogmind --------- Core Integrity 0/250 Matter 300/300 Energy 100/100 System Corruption 8% Temperature Cool (0) Movement Rolling (115) Ox1 Location -7/Recycling Parts ------- > --- POWER (1) -------- (None) > --- PROPULSION (2) --- Compact Wheel > --- UTILITY (2) ------ Scrap Shield > --- WEAPON (2) ------- Beam Cannon Great Maul > --- INVENTORY (5) ---- Wheel Scrap Engine Peak State ------------ > --- POWER ------------ Ion Engine > --- PROPULSION ------- Compact Wheel Subdweller Monowheel > --- UTILITY ---------- Scrap Shield > --- WEAPON ----------- Small Laser Beam Cannon > --- INVENTORY -------- Wheel Compact Wheel Subdweller Monowheel Scrap Engine [Rating: 12] Favorites ----------- Power Ion Engine Engine Ion Engine Propulsion Compact Wheel Leg Aluminum Leg Wheel Compact Wheel Utility Seismic Detector Device Seismic Detector Storage Large Storage Unit Protection Scrap Shield Weapon Beam Cannon Energy Gun Small Laser Energy Cannon Beam Cannon Ballistic Gun Light Assault Rifle Special Weapon Mining Laser Impact Weapon Great Maul Build | -11 -10 -10 -10 -7 ------- Run | Yrd Mat Min Sub Rec Slots Evolved . | . . . . . Power . | . . . . . Propulsion . | . . . . . Utility . | . . . . . Weapon . | . . . . . Parts Attached 18 | 3 10 . 2 3 Power 1 | . 1 . . . Engine 1 | . 1 . . . Core . | . . . . . Reactor . | . . . . . Propulsion 7 | 2 2 . 1 2 Treads . | . . . . . Leg . | . . . . . Wheel 7 | 2 2 . 1 2 Hover . | . . . . . Flight . | . . . . . Utility 3 | 1 1 . 1 . Device 1 | 1 . . . . Storage 1 | . 1 . . . Processor . | . . . . . Hackware . | . . . . . Protection 1 | . . . 1 . Artifact . | . . . . . Weapon 7 | . 6 . . 1 Energy Gun 4 | . 4 . . . Energy Cannon 1 | . 1 . . . Ballistic Gun . | . . . . . Ballistic Cannon . | . . . . . Launcher . | . . . . . Special Weapon 1 | . 1 . . . Impact Weapon 1 | . . . . 1 Slashing Weapon . | . . . . . Piercing Weapon . | . . . . . Special Melee Weapon . | . . . . . Unidentified Prototypes . | . . . . . Parts Lost 6 | . 3 . 1 2 Power 1 | . . . . 1 Propulsion 3 | . 1 . 1 1 Utility . | . . . . . Weapon 2 | . 2 . . . Highest Loss Streak 2 | . 1 . 1 2 To Critical Strikes . | . . . . . Average Slot Usage (%) 94 | . 95 100 85 85 Engine 14 | . 14 14 14 14 Wheel 27 | . 25 28 28 28 Device 10 | . 14 14 . . Storage 10 | . 14 14 . . Protection 3 | . . . 12 14 Energy Gun 16 | . 19 14 14 14 Energy Cannon 10 | . 6 14 14 14 Naked Turns . | . . . . . Heaviest Build 31 | 14 31 30 30 30 Greatest Support 36 | 20 32 32 36 36 Greatest Overweight (x) 3 | . 3 . 1 . Average Overweight (x) . | . . . . . Largest Inventory Capacity 15 | 8 15 15 15 5 Average Capacity 11 | 8 14 15 5 5 Most Carried 15 | 8 11 15 15 5 Average Carried 8 | 7 8 13 5 4 Final Capacity 15 | 8 15 15 5 5 Final Carried 15 | 8 11 15 5 3 Class Distribution -------------------- 100% | Mutant Dominant Class ---------------- Mutant | -10/Materials Mutant | -10/Mines Mutant | -10/Subcaves Mutant | -7/Recycling Resources | -11 -10 -10 -10 -7 ----------- Run | Yrd Mat Min Sub Rec Matter Collected 397 | 246 100 11 20 20 Remotely . | . . . . . Salvage Created 716 | 152 530 34 . . Parts 44 | 13 27 4 . . Haulers Intercepted 1 | . 1 . . . Recyclers Shooed 2 | . 2 . . . Parts Field Recycled . | . . . . . Retrieved Matter . | . . . . . Parts Self-Destructed 17 | . . . 17 . Prevented . | . . . . . Kills | -11 -10 -10 -10 -7 ------- Run | Yrd Mat Min Sub Rec Combat Hostiles Destroyed 15 | . 12 3 . . Guns 10 | . 7 3 . . Cannons 4 | . 4 . . . Classes Destroyed 6 | 2 4 . . . Tunneler 4 | 4 . . . . Hauler 1 | . 1 . . . Recycler 1 | 1 . . . . Watcher 2 | . 2 . . . Swarmer 6 | . 3 3 . . Grunt 9 | . 9 . . . Best Kill Streak 4 | 3 4 3 . . Combat Bots Only 3 | . 3 3 . . Max Kills in Single Turn 1 | 1 1 1 . . Gunslinging . | . . . . . Exploded . | . . . . . Melee . | . . . . . Uniques/NPCs Destroyed . | . . . . . Combat | -11 -10 -10 -10 -7 -------- Run | Yrd Mat Min Sub Rec Hostile Shots Fired 89 | . 59 23 7 . Missed 22 | . 10 7 5 . Damage Taken 929 | . 574 114 27 214 Core 322 | . 219 29 . 74 Absorbed by Shields . | . . . . . Core Remaining (%) 100 | 100 . . . . Volleys Fired 82 | 16 59 7 . . Largest 2 | 2 2 2 . . Hottest 110 | 70 110 100 . . Shots Fired 140 | 32 93 14 1 . Gun 106 | 32 67 7 . . Cannon 33 | . 25 7 1 . Launcher . | . . . . . Special 1 | . 1 . . . Kinetic 16 | 16 . . . . Thermal 111 | 16 80 14 1 . Explosive . | . . . . . Electromagnetic 13 | . 13 . . . Robot Hit Streak 7 | 6 7 5 6 . Robot Miss Streak 4 | 2 3 4 . . Penetration Max . | . . . . . Secondary Targets . | . . . . . Shots Hit Robots 86 | 22 57 6 1 . Core Hits 35 | 8 24 3 . . Critical Kills . | . . . . . Critical Parts Destroyed . | . . . . . Critical Strikes 7 | 2 5 . . . Burn 7 | 2 5 . . . Melee Attacks 2 | . . . . 2 Impact 2 | . . . . 2 Slashing . | . . . . . Piercing . | . . . . . Sneak Attacks . | . . . . . Combat Hostiles . | . . . . . Follow-up Attacks . | . . . . . Damage Inflicted 1187 | 232 823 112 . 20 Guns 849 | 232 575 42 . . Cannons 318 | . 248 70 . . Explosions . | . . . . . Melee . | . . . . . Ramming 20 | . . . . 20 Kinetic 71 | 71 . . . . Thermal 977 | 161 704 112 . . Explosive . | . . . . . Electromagnetic 119 | . 119 . . . Impact . | . . . . . Slashing . | . . . . . Piercing . | . . . . . Highest Corruption 2 | . 2 2 2 2 Average Corruption 2 | . 2 2 2 2 Corruption Purged . | . . . . . Corruption Blocked . | . . . . . Effects 19 | . 3 8 4 4 Message Errors 5 | . 1 2 1 1 Matter Fused 3 | . 1 2 . . Heat Flow Errors 1 | . . 1 . . Energy Discharges 1 | . . . . 1 Parts Fused 1 | . . . 1 . Data Loss (minor) 4 | . 1 1 1 1 Data Loss (major) 2 | . . 1 . 1 Misfires 1 | . . . 1 . Alerts 1 | . . 1 . . Overload Shots . | . . . . . Overflow Damage . | . . . . . Projectiles . | . . . . . Explosions . | . . . . . Melee . | . . . . . Knockbacks . | . . . . . Impact . | . . . . . Kinetic . | . . . . . Secondary . | . . . . . Self-Inflicted Damage 10 | . . . . 10 Shots . | . . . . . Rammed 1 | . . . . 1 Targets Rammed 1 | . . . . 1 Kicked . | . . . . . Crushed . | . . . . . Highest Temperature 242 | 110 242 214 . . Average Temperature 72 | 44 75 89 . . Received Heat Transfer 297 | . 285 . 12 . Siege Activations . | . . . . . Robots Corrupted . | . . . . . Combat Hostiles . | . . . . . Parts Fried . | . . . . . Impact Corruptions . | . . . . . Robots Melted 1 | . 1 . . . Combat Hostiles 1 | . 1 . . . Parts Melted 6 | 1 5 . . . Heat Transferred 3134 | 629 2257 248 . . Parts Sabotaged . | . . . . . Parts Stolen . | . . . . . Parts Stripped . | . . . . . Power Chain Reactions . | . . . . . Alert | -11 -10 -10 -10 -7 ------- Run | Yrd Mat Min Sub Rec Peak Influence 217 | 25 217 154 . 25 Initial 84 | . 16 84 . 25 Average 79 | 13 96 110 . 4 Maximum Alert Level 1 | . 1 . . . Low Security (%) 97 | 100 93 100 . 100 Level 1 2 | . 6 . . . Level 2 . | . . . . . Level 3 . | . . . . . Level 4 . | . . . . . Level 5 . | . . . . . High Security . | . . . . . Max Security . | . . . . . Squads Dispatched 3 | . 3 . . . Investigation . | . . . . . Extermination . | . . . . . Reinforcement 3 | . 3 . . . Assault . | . . . . . Garrison . | . . . . . Intercept . | . . . . . Searches Triggered . | . . . . . Construction Impeded . | . . . . . Haulers Reinforced . | . . . . . Active Scanning Responses . | . . . . . Cargo Convoy Interrupts . | . . . . . Stealth | -11 -10 -10 -10 -7 --------- Run | Yrd Mat Min Sub Rec Distress Signals 1 | . 1 . . . Communications Jammed . | . . . . . Distress Signals . | . . . . . Times Spotted 29 | . 19 5 5 . Peak Tracking Total 4 | . 3 3 4 . Tactical Retreats 1 | . . . 1 . Traps | -11 -10 -10 -10 -7 ------- Run | Yrd Mat Min Sub Rec Traps Triggered 1 | . 1 . . . Indirectly . | . . . . . Trap Hack Attempts . | . . . . . Triggered . | . . . . . Disarmed . | . . . . . Reprogrammed . | . . . . . Reused . | . . . . . Traps Extracted . | . . . . . Installed . | . . . . . Triggered . | . . . . . Machines | -11 -10 -10 -10 -7 ---------- Run | Yrd Mat Min Sub Rec Machines Disabled 1 | . 1 . . . Max in Single Turn 1 | . 1 . . . Machines Repaired . | . . . . . Machines Dismantled . | . . . . . Machines Sabotaged . | . . . . . Overloaded Fab Kills . | . . . . . Hacking | -11 -10 -10 -10 -7 --------- Run | Yrd Mat Min Sub Rec Machines Accessed 1 | . 1 . . . Terminals 1 | . 1 . . . Fabricators . | . . . . . Repair Stations . | . . . . . Recycling Units . | . . . . . Scanalyzers . | . . . . . Garrison Access . | . . . . . Total Hacks 6 | . 6 . . . Successful 3 | . 3 . . . Failed 3 | . 3 . . . Catastrophic . | . . . . . Database Lockouts . | . . . . . Manual 6 | . 6 . . . Terminals 6 | . 6 . . . Fabricators . | . . . . . Repair Stations . | . . . . . Recycling Units . | . . . . . Scanalyzers . | . . . . . Garrison Access . | . . . . . Terminal Hacks 1 | . 1 . . . Robot Analysis 1 | . 1 . . . Fabricator Hacks . | . . . . . Repair Station Hacks . | . . . . . Recycling Unit Hacks . | . . . . . Scanalyzer . | . . . . . Garrison Access Hacks . | . . . . . Unauthorized Hacks 2 | . 2 . . . Terminals 2 | . 2 . . . Track 1 | . 1 . . . Botnet 1 | . 1 . . . Fabricators . | . . . . . Repair Stations . | . . . . . Recycling Units . | . . . . . Scanalyzers . | . . . . . Garrison Access . | . . . . . Data Cores Recovered . | . . . . . Used . | . . . . . Hacking Detections 1 | . 1 . . . Full Trace Events . | . . . . . Feedback Events . | . . . . . Feedback Blocked . | . . . . . Robot Schematics Acquired . | . . . . . Robots Built . | . . . . . Authchips . | . . . . . Time . | . . . . . Total Robot Build Rating . | . . . . . Part Schematics Acquired . | . . . . . Parts Built . | . . . . . Authchips . | . . . . . Time . | . . . . . Total Part Build Rating . | . . . . . Parts Repaired . | . . . . . Time . | . . . . . Parts Recycled . | . . . . . Recycled Matter . | . . . . . Retrieved Matter . | . . . . . Retrieved Components . | . . . . . Parts Scanalyzed . | . . . . . Part Schematics Acquired . | . . . . . Parts Damaged . | . . . . . Bothacking | -11 -10 -10 -10 -7 ------------ Run | Yrd Mat Min Sub Rec Used RIF Installer . | . . . . . Robots Hacked . | . . . . . Non-combat . | . . . . . Combat . | . . . . . Robot Hacks Applied . | . . . . . Relay Couplers Released . | . . . . . Fabnet Peak Effective % . | . . . . . Robots Rewired . | . . . . . Allies Hacked . | . . . . . Hacks Repelled . | . . . . . Allies | -11 -10 -10 -10 -7 -------- Run | Yrd Mat Min Sub Rec Total Allies 5 | . . 5 . . Largest Group 5 | . . 5 5 2 Highest-Rated Group 89 | . . 85 89 47 Highest-Rated Ally 31 | . . 31 31 31 Total Orders . | . . . . . Ally Attacks 47 | . . 4 41 2 Total Damage 728 | . . 84 604 40 Kills 6 | . . 2 4 . Allies Corrupted . | . . . . . Allies Melted . | . . . . . Intel | -11 -10 -10 -10 -7 ------- Run | Yrd Mat Min Sub Rec Robot Analysis Total 1 | . 1 . . . Derelict Logs Recovered 1 | . . 1 . . Drone Launches . | . . . . . Drone Recoveries . | . . . . . Exploration | -11 -10 -10 -10 -7 ------------- Run | Yrd Mat Min Sub Rec Turns Passed 1886 | 116 731 528 229 282 Spaces Moved 1237 | 56 308 435 172 266 Core . | . . . . . Treads . | . . . . . Legs 14 | 14 . . . . Wheels 1223 | 42 308 435 172 266 Hover . | . . . . . Flight . | . . . . . Fastest Speed 80 | 80 80 100 100 100 Average Speed 100 | 90 101 100 101 100 Slowest Speed 125 | 120 125 100 115 105 Overloaded Moves . | . . . . . Propulsion Burnouts . | . . . . . Robots Hopped . | . . . . . Cave-ins Triggered 1 | . . . . 1 Exploration Rate (%) 40 | 4 60 62 14 64 Regions Visited 4 Branch Regions 3 Pre-discovered Areas 1 | . . 1 . . Known Exits Taken . | . . . . . Unknown Exits Taken 4 | 1 1 1 1 . Scrap Searched 2 | . . 1 1 . Spaces Dug 3 | . 1 . . 2 Terrain Destroyed 3 | . 1 . . 2 Melee 2 | . . . . 2 Projectile 1 | . 1 . . . AOE . | . . . . . Terrain Rammed . | . . . . . Walls Destroyed . | . . . . . Machines Disabled . | . . . . . Actions | -11 -10 -10 -10 -7 --------- Run | Yrd Mat Min Sub Rec Total 1747 | 94 626 514 234 279 Wait 370 | 9 246 69 45 1 Move 1233 | 55 307 434 171 266 Hop . | . . . . . Pick Up 16 | 6 2 4 2 2 Fast Attach 7 | 2 3 . 2 . Attach 1 | 1 . . . . Detach . | . . . . . Swap 10 | . 7 . . 3 Drop 25 | 5 2 . 14 4 Fire 82 | 16 59 7 . . Melee 2 | . . . . 2 Ram 1 | . . . . 1 Kick . | . . . . . Crush . | . . . . . Escape Stasis . | . . . . . Rewire . | . . . . . Trap . | . . . . . Miscellaneous . | . . . . . Route ------- -11/Scrapyard -10/Materials (discovered 2 exits: [*Mat] / [*Min]) -10/Mines -10/Subcaves -7/Recycling History --------- Turn | Location | Event 21 | -11/Scrapyard | Discovered new exit (range 3) 117 | -11/Scrapyard | Entered Materials 317 | -10/Materials | Build established: Mutant 506 | -10/Materials | Core integrity fell below 50% 518 | -10/Materials | Core integrity fell below 20% 803 | -10/Materials | Discovered new exit (range 3) 811 | -10/Materials | Discovered new exit (range 16) 848 | -10/Materials | Entered Mines 859 | -10/Mines | Learned location of Mines (-8) 1059 | -10/Mines | Assisted by bots powering up and referring to "LRC-V3" 1349 | -10/Mines | Discovered new exit (range 10) 1376 | -10/Mines | Entered Subcaves 1376 | -10/Subcaves | Accompanied by 5 allies 1381 | -10/Subcaves | Led the pair of lost Derelicts to an unsafe place 1588 | -10/Subcaves | Discovered new exit (range 16) 1605 | -10/Subcaves | Entered Recycling 1605 | -7/Recycling | Accompanied by 2 allies 1607 | -7/Recycling | Found Scrap Engine 1888 | -7/Recycling | Crushed by falling debris 1888 | -7/Recycling | Smashed by cave-in Last Messages --------------- GOAL=ESCAPE 01605_ Discarded Com. Wheel. 01607_ Dropped Com. Wheel. 01607_ Acquired Scrap Engine. 01627_ Dropped Sub. Monowheel. 01628_ Acquired Great Maul. 01655_ Acquired 20 matter. 01663_ L>T%VJ5G9IJ|DE& TDZ2% 01723_ System corrupted: Component data lost. 01755_ Slammed into R-06 Scavenger. 01764_ System corrupted: Energy discharge (-97). 01794_ Trooper 1b destroyed. 01881_ Dropped Sml. Laser. 01882_ System corrupted: Substantial component data lost. 01888_ The unstable cave ceiling collapses. 01888_ Crushed by falling debris. 01888_ Ion Engine destroyed. 01888_ System corrupted by crushing effect (+3). 01888_ Com. Wheel destroyed. 01888_ System corrupted by crushing effect (+3). Map ----- +----------------------------------------------------+ | | | | | | | | | ??????????????????????????????????? | | ??????????????????????????????????? | | ??????????????########????????????? | | ??????????????# % ????????????? | | ??????????????# ????????????" | | ??????????????# ?????????# "" | | ??????????????# #????????# "" | | ??????????????# #????????# "" | | ??????????????#! #?????????? | | ??????????????#! #???????????? | | ??????????????# #???????????? | | ??????????????# ############# | | ??????????????# ! %+ | | ??????????????#% # | | ?????????????# + | | ?????????????######+### ###+##### | | ?????????? ## # ??? | | ?????????? # ? | | ?????????? #### # | | ?????????######### #### # | | ?????????# #????# ##%% # | | ?????????#@####### ## # | | ?????????#[ # ##%% # | | ?????????# # #### # | | ?????????# + #??# # | | ?????????# r # #??# ###### ## | | ?????????# # #?## ##????##? | | ?????????# r ### ######## | | ?????????# # T# | | ?????????# # ""# ######## | | ?????????# # #######??????# | | ????????# # ###??????????# | | ????????## # T#?????????? | | ?????????##r###### ""#?????????? | | ??????????###????# ###?????????? | | ?????????????????# #????????????# | | ?????????????????# #????????????# | | ?????????????????# #????????????? | | ?????????????????# #????????????? | | ?????????????##??# #????????????# | | ?????????????? ?# #????????????# | | ??????????????? ?# #????????????# | | ??????????????? # #????????????# | | ???????????????? # #????????????# | | ?????????????????+ +????????????# | | ?????????????????# #????????????# | +----------------------------------------------------+ Best States ------------- Heat Dissipation 25 Energy Generation 10 Energy Capacity 250 Matter Stores 300 Matter Capacity 300 Sight Range 16 Terrain Scan Density 10 Armor Coverage 800 Evasion (%) 44 Item Schematics ----------------- None Robot Schematics ------------------ None Fabricated ------------ Nothing Alien Tech Used ----------------- None Achievements -------------- None Challenges ------------ None Game ------ Seed PointMasterFlightbrick Manual? 0 Play Time 00:21:59 Cumulative 156.3 hours Start 2024.04.26 @ 10:49:08 End 2024.04.26 @ 11:14:17 Sessions 1 Manual Loads 0 Difficulty Rogue Special Mode None Game No. 135 Rogue 129 Adventurer 0 Explorer 6 Win Type - Total 3 Types 3/0/0/0/0/0/0/0/0 Lore% 44 Gallery% 57 Achievement% 47 Wizard Run 0 Options --------- Layout 0 ASCII 0 Keyboard 0 Movement Numpad Keybinds 0 Fullscreen 1 Font 18/SmallcapsGlow Map View 76x50 Zoom Use 0% Tactical HUD 1 Map Filters NONE Filters NONE Steam 1 RUN: 578daac9-4c83-4ac8-9a79-d130b10093c6